[Event "Turkish-ch Youth U18 Girls 2024"]
[Site "Belek Antalya"]
[Date "2024.01.21"]
[Round "1"]
[White "Yilmaz, Gokcen"]
[Black "Gunes, Eylul"]
[Result "1-0"]
[ECO "C50"]
[WhiteElo "1761"]
[BlackElo "1447"]
[Annotator "NA RC COMBH"]
[PlyCount "71"]
[EventDate "2024.01.21"]
[EventType "swiss"]
[EventCountry "TUR"]
[SourceTitle "playchess.com"]
[Source "ChessBase"]
[SourceQuality "1"]
[TimeControl "5400+30"]

1. e4 {[%emt 0:01:00]} e5 {[%emt 0:01:00]} 2. Nf3 {[%emt 0:00:30]} Nc6 {[%emt 0:00:30]} 3. Nc3 {[%emt 0:00:30]} Nf6 {[%emt 0:00:30]} 4. Bb5 {[%emt 0:00:30]} Bd6 {[%emt 0:00:30]} 5. d3 {[%emt 0:00:30]} h6 {[%emt 0:00:30]} 6. a3 {[%emt 0:00:30]} a6 {[%emt 0:00:00]} 7. Bc4 {[%emt 0:00:00]} Bc5 {[%emt 0:00:00]} 8. O-O {[%emt 0:01:00]} O-O {[%emt 0:00:00]} 9. Ne2 {[%emt 0:00:30]} d6 {[%emt 0:00:00]} 10. h3 {[%emt 0:00:30]} Be6 {[%emt 0:00:00]} 11. Bxe6 {[%emt 0:04:30]} fxe6 {[%emt 0:00:00]} 12. b4 {[%emt 0:00:30]} Ba7 {[%emt 0:00:00]} 13. Ng3 {[%emt 0:11:30]} Qe8 {[%emt 0:06:00]} 14. Nh4 {[%emt 0:17:30]} Rd8 {[%emt 0:04:30]} 15. Be3 {[%emt 0:10:30]} Bb8 {[%emt 0:01:30]} 16. Qd2 {[%emt 0:12:30]} Ne7 {[%emt 0:11:30]} 17. f4 {[%emt 0:12:30]} Nh5 {[%emt 0:06:30]} 18. Ne2 {[%emt 0:05:27]} exf4 {[%emt 0:09:30]} 19. Nxf4 {[%emt 0:00:34]} Nxf4 {[%emt 0:00:30]} 20. Bxf4 {[%emt 0:01:39]} g5 {[%emt 0:02:30]} 21. Bxg5 {[%emt 0:01:10]} hxg5 {[%emt 0:00:30]} 22. Qxg5+ {[%emt 0:00:04]} Kh7 {[%emt 0:00:30]} 23. d4 {[%emt 0:01:56]} Rg8 {[%emt 0:06:30]} 24. Qf6 {[%emt 0:00:56]} Ng6 {[%emt 0:07:30]} 25. Nf3 {[%emt 0:02:09]} Rf8 {[%emt 0:14:30]} 26. Qg5 {[%emt 0:00:18]} Nf4 {[%emt 0:11:08]} 27. Qg4 {[%emt 0:07:15]} e5 {[%emt 0:03:24]} 28. Ng5+ {[%emt 0:01:58]} Kh6 {[%emt 0:02:48]} 29. g3 {[%emt 0:01:10]} Ne2+ {[%emt 0:03:25]} 30. Qxe2 {[%emt 0:00:38]} Kxg5 {[%emt 0:00:30]} 31. Qg4+ {[%emt 0:00:30]} Kh6 {[%emt 0:00:30]} 32. Rxf8 {[%emt 0:00:15]} Qxf8 {[%emt 0:00:11]} 33. Rf1 {[%emt 0:00:09]} Qe7 {[%emt 0:01:24]} 34. Rf5 {[%emt 0:00:25]} Qe8 {[%emt 0:01:56]} 35. Qg5+ {[%emt 0:00:23]} Kh7 {[%emt 0:00:24]} 36. Rf6 {[%emt 0:00:13]} 1-0

[Event "Turkish-ch Youth U18 Girls 2024"]
[Site "Belek Antalya"]
[Date "2024.01.21"]
[Round "1"]
[White "Keskin, Elif"]
[Black "Yigit, Cansu"]
[Result "0-1"]
[ECO "D30"]
[WhiteElo "1636"]
[BlackElo "1298"]
[Annotator "NA RC COMBH"]
[PlyCount "60"]
[EventDate "2024.01.21"]
[EventType "swiss"]
[EventCountry "TUR"]
[SourceTitle "playchess.com"]
[Source "ChessBase"]
[SourceQuality "1"]
[TimeControl "5400+30"]

1. d4 {[%emt 0:01:00]} d5 {[%emt 0:01:00]} 2. Nf3 {[%emt 0:00:30]} Nf6 {[%emt 0:00:30]} 3. c4 {[%emt 0:00:30]} e6 {[%emt 0:00:30]} 4. cxd5 {[%emt 0:00:00]} Qxd5 {[%emt 0:14:30]} 5. Nc3 {[%emt 0:01:00]} Qd8 {[%emt 0:08:30]} 6. Bg5 {[%emt 0:08:30]} Be7 {[%emt 0:00:30]} 7. e3 {[%emt 0:02:30]} O-O {[%emt 0:00:30]} 8. Bd3 {[%emt 0:01:30]} Nbd7 {[%emt 0:05:30]} 9. O-O {[%emt 0:02:30]} c5 {[%emt 0:03:30]} 10. Qe2 {[%emt 0:04:30]} cxd4 {[%emt 0:03:30]} 11. exd4 {[%emt 0:02:30]} b6 {[%emt 0:11:30]} 12. Rfe1 {[%emt 0:20:30]} Bb7 {[%emt 0:02:30]} 13. Rad1 {[%emt 0:07:30]} Ng4 {[%emt 0:10:30]} 14. Bxe7 {[%emt 0:07:30]} Qxe7 {[%emt 0:00:30]} 15. d5 {[%emt 0:00:30]} Qd6 {[%emt 0:11:30]} 16. h3 {[%emt 0:27:58]} Ngf6 {[%emt 0:05:49]} 17. Nb5 {[%emt 0:02:19]} Qf4 {[%emt 0:05:31]} 18. g3 {[%emt 0:05:43]} Qh6 {[%emt 0:00:54]} 19. dxe6 {[%emt 0:01:27]} fxe6 {[%emt 0:00:01]} 20. Nc7 {[%emt 0:00:16]} Bxf3 {[%emt 0:10:02]} 21. Qxf3 {[%emt 0:00:30]} Nd5 {[%emt 0:00:30]} 22. Qg4 {[%emt 0:00:43]} Nxc7 {[%emt 0:00:00]} 23. Bc4 {[%emt 0:00:31]} Nf6 {[%emt 0:01:27]} 24. Bxe6+ {[%emt 0:00:28]} Kh8 {[%emt 0:01:41]} 25. Qc4 {[%emt 0:00:30]} Nxe6 {[%emt 0:00:30]} 26. Qxe6 {[%emt 0:00:00]} Rae8 {[%emt 0:00:00]} 27. Qf5 {[%emt 0:00:19]} g6 {[%emt 0:00:58]} 28. Qf3 {[%emt 0:00:53]} Rxe1+ {[%emt 0:00:30]} 29. Rxe1 {[%emt 0:00:30]} Qxh3 {[%emt 0:00:00]} 30. Re6 {[%emt 0:00:31]} Qxe6 {[%emt 0:00:12]} 0-1

[Event "Turkish-ch Youth U18 Girls 2024"]
[Site "Belek Antalya"]
[Date "2024.01.21"]
[Round "1"]
[White "Ermemis, Zehra Ece"]
[Black "Uster, Defne"]
[Result "1-0"]
[ECO "B46"]
[WhiteElo "1533"]
[BlackElo "1249"]
[Annotator "NA RC COMBH"]
[PlyCount "51"]
[EventDate "2024.01.21"]
[EventType "swiss"]
[EventCountry "TUR"]
[SourceTitle "playchess.com"]
[Source "ChessBase"]
[SourceQuality "1"]
[TimeControl "5400+30"]

1. e4 {[%emt 0:01:00]} c5 {[%emt 0:01:00]} 2. Nf3 {[%emt 0:00:30]} e6 {[%emt 0:00:30]} 3. d4 {[%emt 0:00:30]} cxd4 {[%emt 0:00:30]} 4. Nxd4 {[%emt 0:00:30]} Nf6 {[%emt 0:00:30]} 5. Nc3 {[%emt 0:00:30]} Nc6 {[%emt 0:00:30]} 6. a3 {[%emt 0:00:00]} Be7 {[%emt 0:01:30]} 7. Be3 {[%emt 0:00:00]} a6 {[%emt 0:07:30]} 8. Be2 {[%emt 0:05:30]} d5 {[%emt 0:04:30]} 9. exd5 {[%emt 0:01:30]} Nxd5 {[%emt 0:00:30]} 10. Nxc6 {[%emt 0:03:30]} bxc6 {[%emt 0:00:30]} 11. Bd4 {[%emt 0:07:30]} O-O {[%emt 0:04:30]} 12. O-O {[%emt 0:08:30]} Bf6 {[%emt 0:15:30]} 13. Ne4 {[%emt 0:22:30]} Bxd4 {[%emt 0:18:30]} 14. Qxd4 {[%emt 0:00:30]} Qh4 {[%emt 0:07:30]} 15. Rad1 {[%emt 0:08:30]} f5 {[%emt 0:21:44]} 16. Nc5 {[%emt 0:05:30]} Nf4 {[%emt 0:01:39]} 17. Bf3 {[%emt 0:10:30]} Rb8 {[%emt 0:02:23]} 18. b4 {[%emt 0:04:58]} Re8 {[%emt 0:04:13]} 19. Qd6 {[%emt 0:05:53]} Bb7 {[%emt 0:03:13]} 20. g3 {[%emt 0:08:49]} Nh3+ {[%emt 0:02:37]} 21. Kg2 {[%emt 0:00:30]} Qh6 {[%emt 0:00:00]} 22. Nxb7 {[%emt 0:03:24]} Rxb7 {[%emt 0:01:36]} 23. Bxc6 {[%emt 0:01:07]} Rb6 {[%emt 0:00:32]} 24. Qc7 {[%emt 0:00:16]} Rbb8 {[%emt 0:00:31]} 25. Bxe8 {[%emt 0:00:16]} Rxe8 {[%emt 0:00:00]} 26. Rd8 {[%emt 0:00:24]} 1-0

[Event "Turkish-ch Youth U18 Girls 2024"]
[Site "Belek Antalya"]
[Date "2024.01.21"]
[Round "1"]
[White "Sovukluk, Ecem Su"]
[Black "Kipik, Feyza"]
[Result "0-1"]
[ECO "B22"]
[WhiteElo "1242"]
[BlackElo "1727"]
[Annotator "NA RC COMBH"]
[PlyCount "88"]
[EventDate "2024.01.21"]
[EventType "swiss"]
[EventCountry "TUR"]
[SourceTitle "playchess.com"]
[Source "ChessBase"]
[SourceQuality "1"]
[TimeControl "5400+30"]

1. e4 {[%emt 0:01:00]} c5 {[%emt 0:01:00]} 2. Nf3 {[%emt 0:00:30]} e6 {[%emt 0:00:30]} 3. c3 {[%emt 0:00:30]} Nf6 {[%emt 0:00:30]} 4. e5 {[%emt 0:00:30]} Nd5 {[%emt 0:00:30]} 5. d4 {[%emt 0:00:30]} cxd4 {[%emt 0:00:30]} 6. cxd4 {[%emt 0:00:30]} d6 {[%emt 0:00:00]} 7. Bd2 {[%emt 0:00:00]} Nc6 {[%emt 0:08:00]} 8. Nc3 {[%emt 0:04:00]} Be7 {[%emt 0:22:30]} 9. Bc4 {[%emt 0:03:30]} Nb6 {[%emt 0:04:30]} 10. Bb3 {[%emt 0:01:30]} O-O {[%emt 0:07:30]} 11. O-O {[%emt 0:05:30]} Na5 {[%emt 0:01:30]} 12. Bc2 {[%emt 0:01:30]} Nac4 {[%emt 0:01:30]} 13. b3 {[%emt 0:03:30]} Nxd2 {[%emt 0:01:30]} 14. Nxd2 {[%emt 0:00:30]} dxe5 {[%emt 0:04:30]} 15. dxe5 {[%emt 0:02:30]} Qd4 {[%emt 0:01:30]} 16. Nce4 {[%emt 0:06:30]} Qxe5 {[%emt 0:01:30]} 17. Nf3 {[%emt 0:00:30]} Qh5 {[%emt 0:05:30]} 18. Ng3 {[%emt 0:01:30]} Qh6 {[%emt 0:06:30]} 19. Re1 {[%emt 0:04:30]} Bd7 {[%emt 0:03:30]} 20. Ne5 {[%emt 0:05:30]} Rad8 {[%emt 0:05:30]} 21. Ng4 {[%emt 0:00:30]} Qf4 {[%emt 0:04:40]} 22. Re4 {[%emt 0:01:30]} Qc7 {[%emt 0:01:10]} 23. Qd3 {[%emt 0:06:30]} f5 {[%emt 0:02:36]} 24. Re2 {[%emt 0:10:30]} Bc8 {[%emt 0:03:42]} 25. Nh6+ {[%emt 0:02:30]} gxh6 {[%emt 0:00:59]} 26. Qf3 {[%emt 0:01:30]} Bg5 {[%emt 0:01:52]} 27. Rae1 {[%emt 0:06:30]} Nd5 {[%emt 0:01:36]} 28. Bb1 {[%emt 0:01:30]} Qc3 {[%emt 0:01:38]} 29. Qxc3 {[%emt 0:03:30]} Nxc3 {[%emt 0:00:05]} 30. Rc2 {[%emt 0:00:30]} Nxb1 {[%emt 0:00:30]} 31. Rxb1 {[%emt 0:00:30]} Bd7 {[%emt 0:00:39]} 32. Rc4 {[%emt 0:01:30]} Bc6 {[%emt 0:00:44]} 33. h4 {[%emt 0:00:30]} Bf6 {[%emt 0:01:08]} 34. Nh5 {[%emt 0:01:30]} Kf7 {[%emt 0:00:16]} 35. Nxf6 {[%emt 0:02:30]} Kxf6 {[%emt 0:00:02]} 36. g3 {[%emt 0:00:30]} Rd2 {[%emt 0:00:17]} 37. a4 {[%emt 0:00:30]} Rfd8 {[%emt 0:00:06]} 38. Rcc1 {[%emt 0:02:30]} Bf3 {[%emt 0:00:30]} 39. b4 {[%emt 0:01:10]} Rd1+ {[%emt 0:00:32]} 40. Rxd1 {[%emt 0:00:30]} Rxd1+ {[%emt 0:00:30]} 41. Rxd1 {[%emt 0:00:30]} Bxd1 {[%emt 0:00:30]} 42. a5 {[%emt 0:00:00]} Ke5 {[%emt 0:00:00]} 43. Kf1 {[%emt 0:00:20]} Kd4 {[%emt 0:00:08]} 44. Ke1 {[%emt 0:00:00]} Bb3 {[%emt 0:00:16]} 0-1

[Event "Turkish-ch Youth U18 Girls 2024"]
[Site "Belek Antalya"]
[Date "2024.01.21"]
[Round "1"]
[White "Barlas, Berra Fatos"]
[Black "Turunz, Dilek"]
[Result "0-1"]
[ECO "D00"]
[WhiteElo "1170"]
[BlackElo "1453"]
[Annotator "NA RC COMBH"]
[PlyCount "90"]
[EventDate "2024.01.21"]
[EventType "swiss"]
[EventCountry "TUR"]
[SourceTitle "playchess.com"]
[Source "ChessBase"]
[SourceQuality "1"]
[TimeControl "5400+30"]

1. d4 {[%emt 0:01:00]} d5 {[%emt 0:01:00]} 2. e3 {[%emt 0:00:30]} Nf6 {[%emt 0:01:30]} 3. Bd3 {[%emt 0:00:30]} e6 {[%emt 0:01:30]} 4. Nd2 {[%emt 0:00:30]} c6 {[%emt 0:01:30]} 5. f4 {[%emt 0:01:30]} Nbd7 {[%emt 0:02:30]} 6. Ngf3 {[%emt 0:00:30]} Bd6 {[%emt 0:06:30]} 7. O-O {[%emt 0:00:00]} c5 {[%emt 0:03:30]} 8. c3 {[%emt 0:00:00]} O-O {[%emt 0:02:30]} 9. Ne5 {[%emt 0:00:30]} Qb6 {[%emt 0:04:30]} 10. Kh1 {[%emt 0:02:30]} Qc7 {[%emt 0:07:30]} 11. Rf3 {[%emt 0:04:30]} c4 {[%emt 0:03:30]} 12. Bc2 {[%emt 0:01:30]} b5 {[%emt 0:00:00]} 13. Rh3 {[%emt 0:00:30]} g6 {[%emt 0:05:00]} 14. g4 {[%emt 0:06:30]} Bb7 {[%emt 0:03:30]} 15. g5 {[%emt 0:02:30]} Ne4 {[%emt 0:00:30]} 16. Bxe4 {[%emt 0:04:30]} dxe4 {[%emt 0:00:30]} 17. Qg4 {[%emt 0:03:30]} Bxe5 {[%emt 0:14:30]} 18. fxe5 {[%emt 0:00:00]} Rfd8 {[%emt 0:12:30]} 19. Nf1 {[%emt 0:14:00]} a5 {[%emt 0:04:30]} 20. Bd2 {[%emt 0:01:30]} Rab8 {[%emt 0:00:30]} 21. Ng3 {[%emt 0:01:30]} Nxe5 {[%emt 0:04:27]} 22. Qh4 {[%emt 0:05:30]} f5 {[%emt 0:01:03]} 23. Qf4 {[%emt 0:05:30]} Rd7 {[%emt 0:01:12]} 24. Be1 {[%emt 0:08:30]} Nf3 {[%emt 0:03:53]} 25. Qxc7 {[%emt 0:00:30]} Rxc7 {[%emt 0:00:00]} 26. Ne2 {[%emt 0:01:30]} Nxg5 {[%emt 0:03:08]} 27. Bg3 {[%emt 0:03:30]} Nxh3 {[%emt 0:00:39]} 28. Bxc7 {[%emt 0:00:00]} Ra8 {[%emt 0:01:40]} 29. Kg2 {[%emt 0:02:00]} Ng5 {[%emt 0:00:11]} 30. Nf4 {[%emt 0:01:30]} Bd5 {[%emt 0:00:31]} 31. h4 {[%emt 0:02:30]} Nf7 {[%emt 0:00:10]} 32. Nxd5 {[%emt 0:04:30]} exd5 {[%emt 0:00:35]} 33. Bf4 {[%emt 0:00:30]} a4 {[%emt 0:02:05]} 34. a3 {[%emt 0:00:30]} Kg7 {[%emt 0:00:30]} 35. Rg1 {[%emt 0:00:00]} h6 {[%emt 0:02:38]} 36. Kf2 {[%emt 0:01:00]} Kf6 {[%emt 0:00:16]} 37. Be5+ {[%emt 0:00:30]} Nxe5 {[%emt 0:00:30]} 38. dxe5+ {[%emt 0:00:30]} Kf7 {[%emt 0:02:40]} 39. Kg3 {[%emt 0:08:55]} g5 {[%emt 0:01:24]} 40. hxg5 {[%emt 0:02:57]} hxg5 {[%emt 0:00:03]} 41. Rh1 {[%emt 0:00:45]} Ke6 {[%emt 0:00:11]} 42. Rh6+ {[%emt 0:00:59]} Kxe5 {[%emt 0:00:53]} 43. Rb6 {[%emt 0:00:17]} f4+ {[%emt 0:00:46]} 44. exf4+ {[%emt 0:00:30]} gxf4+ {[%emt 0:00:00]} 45. Kf2 {[%emt 0:00:00]} Rg8 {[%emt 0:00:55]} 0-1

[Event "Turkish-ch Youth U18 Girls 2024"]
[Site "Belek Antalya"]
[Date "2024.01.22"]
[Round "2"]
[White "Kipik, Feyza"]
[Black "Ermemis, Zehra Ece"]
[Result "0-1"]
[ECO "C26"]
[WhiteElo "1727"]
[BlackElo "1533"]
[Annotator "NA RC COMBH"]
[PlyCount "57"]
[EventDate "2024.01.21"]
[EventType "swiss"]
[EventCountry "TUR"]
[SourceTitle "playchess.com"]
[Source "ChessBase"]
[SourceQuality "1"]
[TimeControl "5400+30"]

1. e4 {[%emt 0:02:00]} e5 {[%emt 0:01:00]} 2. Nc3 {[%emt 0:12:30]} Nf6 {[%emt 0:00:30]} 3. g3 {[%emt 0:00:30]} Bc5 {[%emt 0:00:30]} 4. Bg2 {[%emt 0:00:30]} d6 {[%emt 0:01:30]} 5. d3 {[%emt 0:08:30]} Nc6 {[%emt 0:05:30]} 6. h3 {[%emt 0:05:30]} O-O {[%emt 0:24:30]} 7. Bd2 {[%emt 0:20:30]} Be6 {[%emt 0:05:30]} 8. Nd5 {[%emt 0:00:30]} Bxd5 {[%emt 0:00:30]} 9. exd5 {[%emt 0:01:30]} Nb4 {[%emt 0:11:30]} 10. g4 {[%emt 0:03:30]} Nd7 {[%emt 0:21:30]} 11. a3 {[%emt 0:01:30]} Qh4 {[%emt 0:01:30]} 12. Be3 {[%emt 0:26:28]} Bxe3 {[%emt 0:03:15]} 13. Qe2 {[%emt 0:00:14]} Nxc2+ {[%emt 0:01:36]} 14. Qxc2 {[%emt 0:01:09]} Bb6 {[%emt 0:00:49]} 15. Nf3 {[%emt 0:01:28]} Qe7 {[%emt 0:01:30]} 16. O-O {[%emt 0:00:55]} Nf6 {[%emt 0:03:40]} 17. Nd2 {[%emt 0:00:47]} Qd7 {[%emt 0:03:23]} 18. Kh2 {[%emt 0:06:42]} Qb5 {[%emt 0:02:47]} 19. a4 {[%emt 0:03:47]} Qd7 {[%emt 0:03:33]} 20. a5 {[%emt 0:00:22]} Bd4 {[%emt 0:01:24]} 21. Nb3 {[%emt 0:00:20]} Rae8 {[%emt 0:03:01]} 22. Nxd4 {[%emt 0:00:30]} exd4 {[%emt 0:00:30]} 23. Qc4 {[%emt 0:00:30]} Re2 {[%emt 0:00:30]} 24. Qxd4 {[%emt 0:00:30]} Qe7 {[%emt 0:01:55]} 25. Qxa7 {[%emt 0:01:27]} Rxb2 {[%emt 0:00:32]} 26. Rae1 {[%emt 0:00:30]} Qd7 {[%emt 0:00:30]} 27. Qd4 {[%emt 0:00:48]} Rb5 {[%emt 0:00:30]} 28. g5 {[%emt 0:00:51]} Nh5 {[%emt 0:00:21]} 29. Bf3 {[%emt 0:00:08]} 0-1

[Event "Turkish-ch Youth U18 Girls 2024"]
[Site "Belek Antalya"]
[Date "2024.01.22"]
[Round "2"]
[White "Turunz, Dilek"]
[Black "Tekin, Ceyda"]
[Result "1-0"]
[ECO "D00"]
[WhiteElo "1453"]
[BlackElo "1207"]
[Annotator "NA RC COMBH"]
[PlyCount "55"]
[EventDate "2024.01.21"]
[EventType "swiss"]
[EventCountry "TUR"]
[SourceTitle "playchess.com"]
[Source "ChessBase"]
[SourceQuality "1"]
[TimeControl "5400+30"]

1. d4 {[%emt 0:01:00]} d5 {[%emt 0:01:00]} 2. Nc3 {[%emt 0:00:00]} Nf6 {[%emt 0:01:30]} 3. Bf4 {[%emt 0:02:00]} a6 {[%emt 0:04:30]} 4. e3 {[%emt 0:03:30]} Bf5 {[%emt 0:03:30]} 5. Nf3 {[%emt 0:00:30]} e6 {[%emt 0:00:30]} 6. Ne5 {[%emt 0:01:30]} h6 {[%emt 0:08:30]} 7. Bd3 {[%emt 0:05:30]} Bxd3 {[%emt 0:00:30]} 8. Qxd3 {[%emt 0:02:30]} Nbd7 {[%emt 0:03:30]} 9. h3 {[%emt 0:07:30]} c5 {[%emt 0:10:30]} 10. O-O {[%emt 0:07:30]} Be7 {[%emt 0:02:30]} 11. Bh2 {[%emt 0:01:30]} O-O {[%emt 0:01:30]} 12. f4 {[%emt 0:08:30]} cxd4 {[%emt 0:08:30]} 13. exd4 {[%emt 0:00:30]} Rc8 {[%emt 0:00:30]} 14. g4 {[%emt 0:00:30]} Nxe5 {[%emt 0:00:30]} 15. fxe5 {[%emt 0:05:30]} Nd7 {[%emt 0:09:30]} 16. Kh1 {[%emt 0:07:30]} Nb6 {[%emt 0:07:30]} 17. Ne2 {[%emt 0:04:30]} Qc7 {[%emt 0:13:30]} 18. c3 {[%emt 0:01:30]} Qc4 {[%emt 0:06:05]} 19. Qe3 {[%emt 0:04:30]} Bg5 {[%emt 0:02:39]} 20. Bf4 {[%emt 0:00:30]} Bxf4 {[%emt 0:00:30]} 21. Nxf4 {[%emt 0:01:30]} Qc6 {[%emt 0:02:37]} 22. g5 {[%emt 0:05:30]} hxg5 {[%emt 0:05:34]} 23. Nh5 {[%emt 0:00:30]} Rc7 {[%emt 0:03:55]} 24. Qxg5 {[%emt 0:00:30]} f6 {[%emt 0:00:30]} 25. Nxf6+ {[%emt 0:01:30]} Kf7 {[%emt 0:02:22]} 26. Nd7+ {[%emt 0:00:30]} Ke8 {[%emt 0:00:30]} 27. Rxf8+ {[%emt 0:00:30]} Kxd7 {[%emt 0:00:30]} 28. Qxg7# {[%emt 0:00:30]} 1-0

[Event "Turkish-ch Youth U18 Girls 2024"]
[Site "Belek Antalya"]
[Date "2024.01.22"]
[Round "2"]
[White "Gunes, Eylul"]
[Black "Keskin, Elif"]
[Result "0-1"]
[ECO "D30"]
[WhiteElo "1447"]
[BlackElo "1636"]
[Annotator "NA RC COMBH"]
[PlyCount "57"]
[EventDate "2024.01.21"]
[EventType "swiss"]
[EventCountry "TUR"]
[SourceTitle "playchess.com"]
[Source "ChessBase"]
[SourceQuality "1"]
[TimeControl "5400+30"]

1. d4 d5 2. c4 e6 3. g3 h6 4. Nf3 Nf6 5. Bg2 Bd6 6. O-O O-O 7. Nbd2 b6 8. Ne5 c5 9. e3 cxd4 10. exd4 Bb7 11. a3 Nbd7 12. Ndf3 Rc8 13. b3 dxc4 14. Nxc4 Be7 15. Bf4 Nb8 16. Re1 Nd5 17. Bd2 Nc6 18. Ne3 Bf6 19. Nc2 Na5 20. Bxa5 bxa5 21. Qd3 Rc3 22. Qd2 Rxb3 23. Rab1 a4 24. Ne5 Be7 25. Nc4 Qc7 26. Na5 Rxb1 27. Rxb1 Rb8 28. Nxb7 Rxb7 29. h3 0-1

[Event "Turkish-ch Youth U18 Girls 2024"]
[Site "Belek Antalya"]
[Date "2024.01.22"]
[Round "2"]
[White "Yigit, Cansu"]
[Black "Yilmaz, Gokcen"]
[Result "0-1"]
[ECO "B50"]
[WhiteElo "1298"]
[BlackElo "1761"]
[Annotator "NA RC COMBH"]
[PlyCount "82"]
[EventDate "2024.01.21"]
[EventType "swiss"]
[EventCountry "TUR"]
[SourceTitle "playchess.com"]
[Source "ChessBase"]
[SourceQuality "1"]
[TimeControl "5400+30"]

1. e4 {[%emt 0:01:00]} c5 {[%emt 0:01:00]} 2. Nf3 {[%emt 0:00:00]} g6 {[%emt 0:00:30]} 3. d4 {[%emt 0:00:00]} cxd4 {[%emt 0:00:30]} 4. Nxd4 {[%emt 0:00:00]} Bg7 {[%emt 0:00:30]} 5. Nc3 {[%emt 0:02:00]} Nc6 {[%emt 0:00:30]} 6. Be3 {[%emt 0:02:30]} Nf6 {[%emt 0:00:30]} 7. g3 {[%emt 0:01:30]} O-O {[%emt 0:06:30]} 8. Bg2 {[%emt 0:00:30]} d6 {[%emt 0:00:30]} 9. h3 {[%emt 0:00:30]} Bd7 {[%emt 0:05:30]} 10. O-O {[%emt 0:02:30]} Qc8 {[%emt 0:02:30]} 11. Kh2 {[%emt 0:00:30]} Ne5 {[%emt 0:01:30]} 12. Nde2 {[%emt 0:18:30]} Nc4 {[%emt 0:03:30]} 13. Bc1 {[%emt 0:01:30]} Bc6 {[%emt 0:08:30]} 14. b3 {[%emt 0:18:30]} Nb6 {[%emt 0:00:30]} 15. Rb1 {[%emt 0:02:30]} Qc7 {[%emt 0:06:30]} 16. f4 {[%emt 0:15:30]} Rac8 {[%emt 0:04:30]} 17. Be3 {[%emt 0:05:30]} Rfd8 {[%emt 0:04:30]} 18. Qd2 {[%emt 0:03:30]} d5 {[%emt 0:11:30]} 19. e5 {[%emt 0:02:30]} Ne4 {[%emt 0:00:30]} 20. Nxe4 {[%emt 0:00:30]} dxe4 {[%emt 0:00:30]} 21. Qb4 {[%emt 0:00:30]} Nd5 {[%emt 0:01:30]} 22. Qd2 {[%emt 0:04:33]} Nxf4 {[%emt 0:00:30]} 23. Qe1 {[%emt 0:00:36]} Nxe2 {[%emt 0:03:30]} 24. Qxe2 {[%emt 0:00:13]} Bxe5 {[%emt 0:00:00]} 25. Qf2 {[%emt 0:02:40]} e6 {[%emt 0:07:00]} 26. Bxa7 {[%emt 0:05:16]} Ra8 {[%emt 0:05:30]} 27. c4 {[%emt 0:07:08]} Bxg3+ {[%emt 0:00:30]} 28. Qxg3 {[%emt 0:00:30]} Qxg3+ {[%emt 0:00:30]} 29. Kxg3 {[%emt 0:01:28]} Rxa7 {[%emt 0:00:30]} 30. Kf4 {[%emt 0:00:08]} Rxa2 {[%emt 0:00:30]} 31. Bxe4 {[%emt 0:00:25]} Rd4 {[%emt 0:00:30]} 32. Rfe1 {[%emt 0:01:59]} f5 {[%emt 0:00:30]} 33. Ke5 {[%emt 0:00:31]} Rxe4+ {[%emt 0:00:30]} 34. Rxe4 {[%emt 0:00:00]} fxe4 {[%emt 0:00:30]} 35. Re1 {[%emt 0:00:41]} Rb2 {[%emt 0:01:30]} 36. Re3 {[%emt 0:01:09]} Kf7 {[%emt 0:00:30]} 37. Kd4 {[%emt 0:00:24]} Rd2+ {[%emt 0:00:30]} 38. Kc3 {[%emt 0:00:44]} Rd3+ {[%emt 0:00:30]} 39. Rxd3 {[%emt 0:00:30]} exd3 {[%emt 0:00:30]} 40. Kxd3 {[%emt 0:00:00]} g5 {[%emt 0:00:00]} 41. b4 {[%emt 0:00:00]} Bg2 {[%emt 0:00:00]} 0-1

[Event "Turkish-ch Youth U18 Girls 2024"]
[Site "Belek Antalya"]
[Date "2024.01.22"]
[Round "2"]
[White "Uster, Defne"]
[Black "Sovukluk, Ecem Su"]
[Result "1/2-1/2"]
[ECO "B27"]
[WhiteElo "1249"]
[BlackElo "1242"]
[Annotator "NA RC COMBH"]
[PlyCount "99"]
[EventDate "2024.01.21"]
[EventType "swiss"]
[EventCountry "TUR"]
[SourceTitle "playchess.com"]
[Source "ChessBase"]
[SourceQuality "1"]
[TimeControl "5400+30"]

1. e4 {[%emt 0:01:00]} c5 {[%emt 0:01:00]} 2. Nf3 {[%emt 0:00:30]} g6 {[%emt 0:00:30]} 3. d4 {[%emt 0:00:30]} cxd4 {[%emt 0:00:30]} 4. Qxd4 {[%emt 0:00:30]} Nf6 {[%emt 0:00:00]} 5. e5 {[%emt 0:00:00]} Nc6 {[%emt 0:00:00]} 6. Qf4 {[%emt 0:00:00]} Nh5 {[%emt 0:00:30]} 7. Qd2 {[%emt 0:00:00]} Qc7 {[%emt 0:01:30]} 8. Qc3 {[%emt 0:02:00]} e6 {[%emt 0:01:30]} 9. a3 {[%emt 0:07:30]} Ng7 {[%emt 0:00:30]} 10. Bh6 {[%emt 0:00:30]} Nf5 {[%emt 0:00:30]} 11. Bxf8 {[%emt 0:04:30]} Rxf8 {[%emt 0:00:30]} 12. Nbd2 {[%emt 0:07:30]} d6 {[%emt 0:02:30]} 13. exd6 {[%emt 0:00:30]} Nxd6 {[%emt 0:03:30]} 14. O-O-O {[%emt 0:05:30]} Bd7 {[%emt 0:01:30]} 15. Qf6 {[%emt 0:06:30]} Ne7 {[%emt 0:00:30]} 16. Nb3 {[%emt 0:00:30]} Nd5 {[%emt 0:00:30]} 17. Qd4 {[%emt 0:00:30]} Nf5 {[%emt 0:00:30]} 18. Qe5 {[%emt 0:00:30]} Qxe5 {[%emt 0:00:30]} 19. Nxe5 {[%emt 0:00:30]} O-O-O {[%emt 0:00:30]} 20. Bc4 {[%emt 0:00:30]} Nb6 {[%emt 0:00:30]} 21. Nc5 {[%emt 0:27:30]} Nxc4 {[%emt 0:19:30]} 22. Ncxd7 {[%emt 0:03:30]} Nxe5 {[%emt 0:00:30]} 23. Nxe5 {[%emt 0:04:30]} f6 {[%emt 0:01:30]} 24. Nf3 {[%emt 0:02:30]} Nd6 {[%emt 0:02:30]} 25. Nd4 {[%emt 0:05:30]} Rfe8 {[%emt 0:00:30]} 26. Rhe1 {[%emt 0:00:30]} e5 {[%emt 0:00:30]} 27. Nb3 {[%emt 0:00:30]} Re7 {[%emt 0:01:30]} 28. f3 {[%emt 0:03:15]} Rc7 {[%emt 0:00:30]} 29. Rd5 {[%emt 0:02:54]} b6 {[%emt 0:04:30]} 30. Red1 {[%emt 0:01:02]} Nf7 {[%emt 0:01:30]} 31. Rxd8+ {[%emt 0:00:58]} Nxd8 {[%emt 0:00:30]} 32. Nd2 {[%emt 0:02:44]} Rc6 {[%emt 0:02:30]} 33. b4 {[%emt 0:02:59]} a6 {[%emt 0:01:30]} 34. c4 {[%emt 0:00:57]} Nf7 {[%emt 0:03:30]} 35. Kc2 {[%emt 0:00:48]} Nh6 {[%emt 0:00:30]} 36. g4 {[%emt 0:01:51]} Nf7 {[%emt 0:00:30]} 37. h4 {[%emt 0:01:05]} Nd8 {[%emt 0:03:30]} 38. Kc3 {[%emt 0:01:09]} Rd6 {[%emt 0:03:30]} 39. Re1 {[%emt 0:00:26]} Nc6 {[%emt 0:01:30]} 40. Ne4 {[%emt 0:01:06]} Re6 {[%emt 0:00:30]} 41. g5 {[%emt 0:00:30]} f5 {[%emt 0:00:30]} 42. Nf6 {[%emt 0:00:30]} h6 {[%emt 0:00:30]} 43. Nd5 {[%emt 0:02:28]} hxg5 {[%emt 0:00:30]} 44. hxg5 {[%emt 0:00:30]} Kb7 {[%emt 0:00:30]} 45. Re3 {[%emt 0:01:37]} Nd8 {[%emt 0:02:30]} 46. Nf6 {[%emt 0:01:06]} b5 {[%emt 0:06:30]} 47. c5 {[%emt 0:00:30]} Kc6 {[%emt 0:00:00]} 48. Rd3 {[%emt 0:01:08]} Nf7 {[%emt 0:00:00]} 49. Nh7 {[%emt 0:00:04]} e4 {[%emt 0:01:30]} 50. Re3 {[%emt 0:00:50]} 1/2-1/2